fUSD/lending_fUSD_20260526
["ID","MTS","AMOUNT","RATE_DAILY","PERIOD"]
[423014847,1779747045000,-294.0,0.00022,2]
[423014850,1779747045000,-450.0,0.00022,2]
[423014852,1779747045000,-1163.0,0.00022,2]
[423014846,1779747045000,-5000.0,0.00022,10]
[423014845,1779747045000,-1000.0,0.00021999,2]
[423014855,1779747045000,-354.0,0.00022,2]
[423014839,1779747045000,-164.8,0.00021918,2]
[423014838,1779747045000,-900.0,0.00021918,2]
[423014836,1779747045000,-900.0,0.00021918,2]
[423014840,1779747045000,-300.0,0.00021918,2]
[423014841,1779747045000,-1000.0,0.00021999,2]
[423014834,1779747045000,-900.0,0.00021918,2]
[423014833,1779747045000,-900.0,0.00021918,2]
[423014837,1779747045000,-900.0,0.00021918,2]
[423014832,1779747045000,-900.0,0.00021918,2]
[423014842,1779747045000,-1000.0,0.00021999,2]
[423014843,1779747045000,-1000.0,0.00021999,2]
[423014831,1779747045000,-900.0,0.00021918,2]
[423014844,1779747045000,-1000.0,0.00021999,2]
[423014826,1779747045000,-6471.69,0.0002137,2]
[423014861,1779747047000,-244.8808197,0.00019731,2]
[423014859,1779747047000,-835.5016347,0.00016731,2]
[423014862,1779747047000,-463.11319434,0.00019731,2]
[423014864,1779747047000,-304.69401404,0.00022301,7]
[423014863,1779747047000,-223.00598596,0.00019731,2]
[423014860,1779747047000,-95.4983653,0.00016731,2]
[423014867,1779747120000,136.40821353,0.0001,2]
[423014866,1779747120000,34.359592,0.0001,2]
[423014869,1779747635000,285.36772064,0.00011,7]
[423014873,1779747967000,173.41,7.422e-05,2]
[423014874,1779748008000,-348.62769801,0.000114,2]
[423014894,1779748231000,-15955.0,0.00013707,2]
[423014903,1779748231000,-6297.0,0.0001395,2]
[423014905,1779748231000,-2294.0,0.0001399,2]
[423014907,1779748231000,-166.66,0.00014275,2]
[423014895,1779748231000,-1200.0,0.00013781,2]
[423014899,1779748231000,-300.0,0.00013848,2]
[423014900,1779748231000,-208.87966228,0.00013862,2]
[423014897,1779748231000,-500.0,0.00013782,2]
[423014904,1779748231000,-166.66,0.00013987,2]
[423014902,1779748231000,-215.38528485,0.00013862,2]
[423014891,1779748231000,-155.14692992,0.00013654,2]
[423014892,1779748231000,-1297.0,0.00013679,2]
[423014889,1779748231000,-311.43139196,0.000125,2]
[423014890,1779748231000,-150.0,0.00013593,2]
[423014896,1779748231000,-490.85,0.00013782,2]
[423014887,1779748231000,-153.0,0.00011513,2]
[423014888,1779748231000,-250.0,0.00012438,2]
[423014886,1779748231000,-1753.57432132,0.000114,2]
[423014885,1779748231000,-759.22906717,0.000114,2]
[423014884,1779748231000,-152.49798757,0.00011307,2]
[423014893,1779748231000,-166.66,0.00013699,2]
[423014906,1779748231000,-166.7,0.00014195,2]
[423014929,1779748231000,-1425.4291,0.000149,2]
[423014908,1779748231000,-274.17,0.00014518,2]
[423014898,1779748231000,-1254.4181,0.00013822,2]
[423014935,1779748231000,-500.0,0.00014999,2]
[423014932,1779748231000,-1404.713,0.00014998,2]
[423014936,1779748231000,-500.0,0.00014999,2]
[423014937,1779748231000,-500.0,0.00014999,2]
[423014934,1779748231000,-500.0,0.00014999,2]
[423014930,1779748231000,-1000.0,0.00014998,2]
[423014931,1779748231000,-170.256,0.00014998,2]
[423014928,1779748231000,-41738.9252,0.000149,2]
[423014927,1779748231000,-606.9075246,0.000149,2]
[423014933,1779748231000,-500.0,0.00014999,2]
[423014916,1779748231000,-10000.0,0.0001485,2]
[423014925,1779748231000,-464.0012267,0.000149,2]
[423014910,1779748231000,-166.66,0.00014563,2]
[423014920,1779748231000,-6960.33170941,0.0001489,2]
[423014912,1779748231000,-162.53,0.00014614,2]
[423014918,1779748231000,-150.0,0.00014851,2]
[423014921,1779748231000,-1654.5995,0.000149,2]
[423014923,1779748231000,-152.49798757,0.000149,2]
[423014915,1779748231000,-173.41,0.00014843,2]
[423014914,1779748231000,-3321.0,0.00014689,2]
[423014917,1779748231000,-166.66,0.00014851,2]
[423014952,1779748232000,-500.0,0.00014999,2]
[423014950,1779748232000,-500.0,0.00014999,2]
[423014951,1779748232000,-500.0,0.00014999,2]
[423014948,1779748232000,-500.0,0.00014999,2]
[423014949,1779748232000,-500.0,0.00014999,2]
[423014942,1779748232000,-500.0,0.00014999,2]
[423014943,1779748232000,-500.0,0.00014999,2]
[423014940,1779748232000,-500.0,0.00014999,2]
[423014945,1779748232000,-500.0,0.00014999,2]
[423014947,1779748232000,-500.0,0.00014999,2]
[423014941,1779748232000,-500.0,0.00014999,2]
[423014946,1779748232000,-500.0,0.00014999,2]
[423014939,1779748232000,-500.0,0.00014999,2]
[423014938,1779748232000,-500.0,0.00014999,2]
[423014953,1779748232000,-500.0,0.00014999,2]
[423014944,1779748232000,-500.0,0.00014999,2]
[423014954,1779748232000,-500.0,0.00014999,2]
[423014955,1779748232000,-500.0,0.00014999,2]
[423014970,1779748232000,-3411.1362387,0.00014999,2]
[423014972,1779748232000,-1051.54508863,0.00015,2]
[423014971,1779748232000,-7772.60890663,0.00015,2]
[423014968,1779748232000,-500.0,0.00014999,2]
[423014969,1779748232000,-500.0,0.00014999,2]
[423014967,1779748232000,-500.0,0.00014999,2]
[423014966,1779748232000,-400.0,0.00014999,2]
[423014965,1779748232000,-500.0,0.00014999,2]
[423014964,1779748232000,-500.0,0.00014999,2]
[423014958,1779748232000,-500.0,0.00014999,2]
[423014963,1779748232000,-500.0,0.00014999,2]
[423014962,1779748232000,-500.0,0.00014999,2]
[423014959,1779748232000,-500.0,0.00014999,2]
[423014961,1779748232000,-500.0,0.00014999,2]
[423014957,1779748232000,-636.55478656,0.00014999,2]
[423014960,1779748232000,-500.0,0.00014999,2]
[423014956,1779748232000,-500.0,0.00014999,2]
[423014979,1779748237000,-1300.0,0.000148,2]
[423014980,1779748237000,-1983.8496,0.000148,2]
[423014982,1779748237000,-11013.22614833,0.00015,2]
[423014981,1779748237000,-162.31258924,0.000149,2]
[423014983,1779748238000,-2403.83756816,0.00015,2]
[423014998,1779748240000,-11585.99999999,0.00015,2]
[423014997,1779748240000,-38298.89977343,0.00015,2]
[423015019,1779748242000,-2852.14,0.00016378,2]
[423015011,1779748242000,-273.03,0.00015094,2]
[423015010,1779748242000,-428.21908967,0.00015,2]
[423015007,1779748242000,-2077.97992917,0.00015,2]
[423015018,1779748242000,-496.0,0.00016333,2]
[423015015,1779748242000,-561.08,0.00015461,2]
[423015009,1779748242000,-27900.37785003,0.00015,2]
[423015016,1779748242000,-246.0,0.00015979,2]
[423015008,1779748242000,-8088.60144888,0.00015,2]
[423015006,1779748242000,-393362.16750085,0.00015,2]
[423015017,1779748242000,-159.36,0.00016276,2]
[423015013,1779748242000,-348.0,0.00015159,2]
[423015014,1779748242000,-202.0,0.00015174,2]
[423015012,1779748242000,-166.66,0.00015139,2]
[423015028,1779748242000,-3341.03,0.00016922,2]
[423015027,1779748242000,-442.21,0.00016922,2]
[423015030,1779748242000,-2000.0,0.00017129,2]
[423015026,1779748242000,-577.61138007,0.00016731,2]
[423015029,1779748242000,-150.99,0.00016922,2]
[423015025,1779748242000,-315.44579433,0.00016731,2]
[423015024,1779748242000,-770.7589289,0.00016731,2]
[423015023,1779748242000,-168.2,0.00016712,2]
[423015020,1779748242000,-287.64228949,0.00016438,30]
[423015022,1779748242000,-166.7,0.00016538,2]
[423015021,1779748242000,-287.64228949,0.00016438,7]
[423015072,1779748243000,-174.61919141,0.000202,2]
[423015076,1779748243000,-152.0,0.000202,2]
[423015075,1779748243000,-191.62533551,0.000202,2]
[423015074,1779748243000,-151.0,0.000202,2]
[423015073,1779748243000,-152.0,0.000202,2]
[423015071,1779748243000,-743.50770149,0.000202,2]
[423015063,1779748243000,-578.20924308,0.000202,2]
[423015069,1779748243000,-151.0,0.000202,2]
[423015065,1779748243000,-174.61919141,0.000202,2]
[423015066,1779748243000,-360.33232621,0.000202,2]
[423015064,1779748243000,-181.1728233,0.000202,2]
[423015084,1779748243000,-174.61919141,0.000202,2]
[423015070,1779748243000,-200.0,0.000202,2]
[423015083,1779748243000,-604.35502153,0.000202,2]
[423015086,1779748243000,-7965.41053267,0.000202,2]
[423015079,1779748243000,-168.83285969,0.000202,2]
[423015078,1779748243000,-151.0,0.000202,2]
[423015080,1779748243000,-152.0,0.000202,2]
[423015087,1779748243000,-601.3376128,0.000202,2]
[423015067,1779748243000,-182.56298133,0.000202,2]
[423015081,1779748243000,-151.0,0.000202,2]
[423015088,1779748243000,-9483.06983969,0.000202,2]
[423015090,1779748243000,-1191.11104074,0.000202,2]
[423015091,1779748243000,-151.0,0.000202,2]
[423015093,1779748243000,-1734.62772924,0.000202,2]
[423015094,1779748243000,-279.9045709,0.000202,2]
[423015095,1779748243000,-151.0,0.000202,2]
[423015092,1779748243000,-200.0,0.000202,2]
[423015082,1779748243000,-151.0,0.000202,2]
[423015068,1779748243000,-153.3044041,0.000202,2]
[423015060,1779748243000,-1025.0,0.0002,2]
[423015051,1779748243000,-827.0,0.0002,2]
[423015031,1779748243000,-200.0,0.00017439,2]
[423015032,1779748243000,-519.0,0.00017471,2]
[423015033,1779748243000,-1271.0,0.00017471,2]
[423015035,1779748243000,-1355.0,0.00017471,2]
[423015042,1779748243000,-1139.0,0.00019101,2]
[423015041,1779748243000,-1774.4,0.0001841,2]
[423015034,1779748243000,-1224.0,0.00017471,2]
[423015047,1779748243000,-1568.0,0.00019878,2]
[423015045,1779748243000,-2000.0,0.0001927,2]
[423015044,1779748243000,-1568.0,0.00019193,2]
[423015046,1779748243000,-273.03,0.00019533,2]
[423015043,1779748243000,-569.0,0.00019101,2]
[423015037,1779748243000,-464.00122661,0.00017616,2]
[423015036,1779748243000,-928.0,0.00017471,2]
[423015038,1779748243000,-178.55120426,0.00018,2]
[423015040,1779748243000,-606.90752453,0.00018392,2]
[423015039,1779748243000,-569.0,0.00018279,2]
[423015050,1779748243000,-5282.54583363,0.0002,2]
[423015056,1779748243000,-989.0,0.0002,2]
[423015061,1779748243000,-2248.0,0.0002,2]
[423015058,1779748243000,-301.0,0.0002,2]
[423015052,1779748243000,-153.81315042,0.0002,2]
[423015049,1779748243000,-250.0,0.0002,2]
[423015048,1779748243000,-570.806284,0.00019923,2]
[423015057,1779748243000,-2290.0,0.0002,2]
[423015096,1779748243000,-174.61919141,0.000202,2]
[423015054,1779748243000,-197.0,0.0002,2]
[423015055,1779748243000,-5283.58329316,0.0002,2]
[423015053,1779748243000,-152.62908926,0.0002,2]
[423015062,1779748243000,-3469.25545848,0.000202,2]
[423015089,1779748243000,-500.0,0.000202,2]
[423015059,1779748243000,-1484.0,0.0002,2]
[423015097,1779748243000,-578.20924308,0.000202,2]
[423015168,1779748243000,-621.78829552,0.0002031,2]
[423015141,1779748243000,-152.0,0.000202,2]
[423015133,1779748243000,-152.0,0.000202,2]
[423015147,1779748243000,-500.0,0.000202,2]
[423015144,1779748243000,-151.0,0.000202,2]
[423015140,1779748243000,-151.0,0.000202,2]
[423015137,1779748243000,-152.0,0.000202,2]
[423015135,1779748243000,-151.0,0.000202,2]
[423015146,1779748243000,-151.0,0.000202,2]
[423015148,1779748243000,-152.0,0.000202,2]
[423015160,1779748243000,-500.0,0.000202,2]
[423015158,1779748243000,-500.0,0.000202,2]
[423015149,1779748243000,-151.0,0.000202,2]
[423015150,1779748243000,-500.0,0.000202,2]
[423015151,1779748243000,-152.0,0.000202,2]
[423015153,1779748243000,-500.0,0.000202,2]
[423015156,1779748243000,-500.0,0.000202,2]
[423015154,1779748243000,-151.0,0.000202,2]
[423015157,1779748243000,-151.0,0.000202,2]
[423015152,1779748243000,-151.0,0.000202,2]
[423015155,1779748243000,-151.0,0.000202,2]
[423015161,1779748243000,-151.0,0.000202,2]
[423015165,1779748243000,-599.60298507,0.00020255,2]
[423015163,1779748243000,-500.0,0.000202,2]
[423015164,1779748243000,-151.0,0.000202,2]
[423015166,1779748243000,-151.0,0.00020255,2]
[423015162,1779748243000,-151.0,0.000202,2]
[423015167,1779748243000,-8260.13072238,0.00020255,2]
[423015100,1779748243000,-151.0,0.000202,2]
[423015138,1779748243000,-151.0,0.000202,2]
[423015136,1779748243000,-500.0,0.000202,2]
[423015159,1779748243000,-151.0,0.000202,2]
[423015145,1779748243000,-152.0,0.000202,2]
[423015142,1779748243000,-151.0,0.000202,2]
[423015098,1779748243000,-152.0,0.000202,2]
[423015110,1779748243000,-151.0,0.000202,2]
[423015102,1779748243000,-151.0,0.000202,2]
[423015105,1779748243000,-500.0,0.000202,2]
[423015112,1779748243000,-500.0,0.000202,2]
[423015111,1779748243000,-152.0,0.000202,2]
[423015101,1779748243000,-152.0,0.000202,2]
[423015106,1779748243000,-151.0,0.000202,2]
[423015103,1779748243000,-151.0,0.000202,2]
[423015104,1779748243000,-152.0,0.000202,2]
[423015107,1779748243000,-152.0,0.000202,2]
[423015108,1779748243000,-500.0,0.000202,2]
[423015113,1779748243000,-151.0,0.000202,2]
[423015109,1779748243000,-151.0,0.000202,2]
[423015114,1779748243000,-151.0,0.000202,2]
[423015143,1779748243000,-500.0,0.000202,2]
[423015139,1779748243000,-500.0,0.000202,2]
[423015131,1779748243000,-151.0,0.000202,2]
[423015121,1779748243000,-151.0,0.000202,2]
[423015117,1779748243000,-151.0,0.000202,2]
[423015099,1779748243000,-151.0,0.000202,2]
[423015119,1779748243000,-500.0,0.000202,2]
[423015118,1779748243000,-152.0,0.000202,2]
[423015125,1779748243000,-152.0,0.000202,2]
[423015129,1779748243000,-151.0,0.000202,2]
[423015127,1779748243000,-500.0,0.000202,2]
[423015116,1779748243000,-151.0,0.000202,2]
[423015123,1779748243000,-151.0,0.000202,2]
[423015115,1779748243000,-500.0,0.000202,2]
[423015169,1779748244000,-151.0,0.0002031,2]
[423015172,1779748244000,-464.00122661,0.00020332,2]
[423015170,1779748244000,-5838.43468897,0.0002031,2]
[423015171,1779748244000,-2727.32087014,0.0002031,2]
[423015173,1779748244000,-644.79446245,0.00020365,2]
[423015179,1779748244000,-770.33250341,0.0002042,2]
[423015175,1779748244000,-8012.8834408,0.00020365,2]
[423015176,1779748244000,-869.805074,0.00020365,2]
[423015177,1779748244000,-1774.4,0.00020381,2]
[423015178,1779748244000,-668.65185756,0.0002042,2]
[423015174,1779748244000,-151.0,0.00020365,2]
[423015182,1779748245000,-270.39079621,0.0002042,7]
[423015181,1779748245000,-527.7,0.0002042,7]
[423015188,1779748402000,300.0,0.00028082,120]
[423015189,1779748403000,300.0,0.00028082,120]
[423015190,1779748404000,231.0,0.00028082,120]
[423015193,1779749340000,1000.0,0.00028081,120]
[423015208,1779749433000,-300.0,0.00013729,2]
[423015211,1779749433000,-300.0,0.00013729,2]
[423015210,1779749433000,-300.0,0.00013729,2]
[423015204,1779749433000,-163.0,0.000134,2]
[423015207,1779749433000,-201.67830479,0.00013629,2]
[423015206,1779749433000,-152.49798758,0.00013629,2]
[423015216,1779749433000,-150.0,0.00014542,2]
[423015203,1779749433000,-1589.0,0.000134,2]
[423015215,1779749433000,-2316.0,0.0001436,2]
[423015202,1779749433000,-250.0,0.000134,2]
[423015201,1779749433000,-1200.0,0.00013399,2]
[423015209,1779749433000,-300.0,0.00013729,2]
[423015198,1779749433000,-3422.45705636,0.00013299,2]
[423015199,1779749433000,-1200.0,0.00013399,2]
[423015205,1779749433000,-2316.0,0.000134,2]
[423015214,1779749433000,-223.95,0.000142,2]
[423015200,1779749433000,-300.0,0.00013399,2]
[423015213,1779749433000,-1589.0,0.00014085,2]
[423015235,1779749433000,-2500.0,0.0001474,2]
[423015233,1779749433000,-2500.0,0.0001474,2]
[423015232,1779749433000,-2500.0,0.0001474,2]
[423015226,1779749433000,-1680.0,0.00014739,2]
[423015224,1779749433000,-295.82351751,0.00014739,2]
[423015222,1779749433000,-300.0,0.00014739,2]
[423015223,1779749433000,-300.0,0.00014739,2]
[423015212,1779749433000,-250.0,0.00014,2]
[423015218,1779749433000,-239.48843001,0.00014718,2]
[423015220,1779749433000,-250.0,0.00014739,2]
[423015228,1779749433000,-300.0,0.0001474,2]
[423015217,1779749433000,-15258.28170191,0.00014543,2]
[423015230,1779749433000,-2500.0,0.0001474,2]
[423015219,1779749433000,-500.0,0.00014739,2]
[423015221,1779749433000,-300.0,0.00014739,2]
[423015231,1779749433000,-2500.0,0.0001474,2]
[423015243,1779749434000,-200.6566695,0.0001474,2]
[423015242,1779749434000,-600.0,0.0001474,2]
[423015241,1779749434000,-206.30061219,0.0001474,2]
[423015237,1779749434000,-600.0,0.0001474,2]
[423015239,1779749434000,-423.56497206,0.0001474,2]
[423015240,1779749434000,-150.0,0.0001474,2]
[423015256,1779749434000,-208.87966228,0.00014936,2]
[423015259,1779749434000,-344.92858935,0.00014999,2]
[423015248,1779749434000,-399.3433305,0.0001474,2]
[423015254,1779749434000,-215.38528485,0.00014936,2]
[423015252,1779749434000,-178.29313302,0.0001474,2]
[423015238,1779749434000,-600.0,0.0001474,2]
[423015269,1779749438000,-357.62871196,0.00014999,2]
[423015268,1779749438000,-155.07141065,0.00014999,2]
[423015310,1779749439000,-142.37128804,0.00014999,2]
[423015311,1779749439000,-500.0,0.00014999,2]
[423015314,1779749439000,-300.0,0.00016,2]
[423015312,1779749439000,-500.0,0.00014999,2]
[423015313,1779749439000,-255.0,0.00015662,2]
[423015315,1779749439000,-911.0,0.00016213,2]
[423015316,1779749439000,-872.0,0.00016333,2]
[423015317,1779749439000,-1254.98611181,0.00016438,2]
[423015322,1779749440000,-671.81221062,0.00017421,2]
[423015321,1779749440000,-1596.51111181,0.00017421,2]
[423015323,1779749440000,-340.26370352,0.00017421,2]
[423015320,1779749440000,-331.0,0.00016869,2]
[423015318,1779749440000,-223.61388819,0.00016438,2]
[423015319,1779749440000,-549.16,0.00016474,2]
[423015327,1779749443000,-759.807,0.00017421,2]
[423015330,1779749443000,-166.66,0.00017588,2]
[423015328,1779749443000,-1092.88449064,0.00017421,2]
[423015331,1779749443000,-200.0,0.00017594,2]
[423015333,1779749443000,-1436.99244762,0.00017647,2]
[423015332,1779749443000,-545.45550936,0.00017647,2]
[423015329,1779749443000,-945.0,0.00017421,2]
[423015343,1779749446000,-2078.17968745,0.00017791,2]
[423015342,1779749446000,-431.885,0.00017791,2]
[423015339,1779749446000,-17.55204302,0.00017647,2]
[423015341,1779749446000,-99.41795698,0.00017791,2]
[423015340,1779749446000,-361.43,0.00017684,2]
[423015338,1779749446000,-364.0,0.00017647,2]
[423015352,1779749987000,151.0,0.00028,120]
[423015354,1779750002000,323.17,0.0001,2]
[423015353,1779750002000,200.0,0.0001,2]
[423015355,1779750019000,201.0,0.00028,120]
[423015357,1779750120000,161.0,0.00028,120]
[423015359,1779750316000,172.59,0.00026123,120]
[423015360,1779750347000,217.0,0.00027776,120]
[423015361,1779750540000,1000.0,0.0002808,120]
[423015366,1779750631000,-1589.0,0.0001372,2]
[423015423,1779750632000,-677.81,0.00017664,2]
[423015404,1779750632000,-150.0,0.00016865,2]
[423015395,1779750632000,-1355.4,0.00016438,2]
[423015397,1779750632000,-215.38528485,0.00016463,2]
[423015398,1779750632000,-208.87966228,0.00016463,2]
[423015396,1779750632000,-834.65631218,0.00016438,2]
[423015400,1779750632000,-234.12,0.00016626,2]
[423015406,1779750632000,-3091.17,0.00017063,2]
[423015405,1779750632000,-2380.97045777,0.00017,2]
[423015416,1779750632000,-1271.0,0.00017563,2]
[423015408,1779750632000,-250.0,0.00017309,2]
[423015409,1779750632000,-16464.1709,0.00017321,2]
[423015407,1779750632000,-500.0,0.00017288,2]
[423015417,1779750632000,-1224.0,0.00017563,2]
[423015411,1779750632000,-172.59,0.00017416,2]
[423015413,1779750632000,-3547.0,0.00017563,2]
[423015412,1779750632000,-626.0,0.00017563,2]
[423015410,1779750632000,-200.0,0.00017374,2]
[423015425,1779750632000,-151.0,0.00017791,2]
[423015415,1779750632000,-1355.0,0.00017563,2]
[423015429,1779750632000,-1047.97,0.00018053,2]
[423015419,1779750632000,-3636.0,0.00017563,2]
[423015418,1779750632000,-418.0,0.00017563,2]
[423015420,1779750632000,-150.0,0.00017612,2]
[423015421,1779750632000,-1047.97,0.00017613,2]
[423015422,1779750632000,-3410.76849244,0.0001762,2]
[423015392,1779750632000,-2000.0,0.0001601,2]
[423015414,1779750632000,-928.0,0.00017563,2]
[423015394,1779750632000,-2589.67303,0.0001603,2]
[423015402,1779750632000,-167.71,0.00016712,2]
[423015367,1779750632000,-300.0,0.00013755,2]
[423015369,1779750632000,-2500.0,0.0001386,2]
[423015379,1779750632000,-1555.0,0.00015096,2]
[423015378,1779750632000,-300.0,0.00015092,2]
[423015368,1779750632000,-2500.0,0.0001379,2]
[423015372,1779750632000,-300.0,0.00013881,2]
[423015375,1779750632000,-646.19,0.00014497,2]
[423015371,1779750632000,-300.0,0.00013881,2]
[423015370,1779750632000,-300.0,0.00013881,2]
[423015376,1779750632000,-2500.0,0.00015092,2]
[423015373,1779750632000,-250.0,0.00014,2]
[423015374,1779750632000,-2500.0,0.00014036,2]
[423015403,1779750632000,-810.51,0.00016825,2]
[423015377,1779750632000,-2500.0,0.00015092,2]
[423015391,1779750632000,-300.0,0.00016,2]
[423015384,1779750632000,-572.27021848,0.00015453,2]
[423015382,1779750632000,-160.0,0.00015424,2]
[423015390,1779750632000,-2000.0,0.00016,2]
[423015388,1779750632000,-178.28469975,0.00015562,2]
[423015387,1779750632000,-1540.9085158,0.00015454,2]
[423015383,1779750632000,-163.49,0.00015424,2]
[423015386,1779750632000,-499.7196809,0.00015454,2]
[423015385,1779750632000,-32625.1596607,0.00015454,2]
[423015380,1779750632000,-2000.0,0.0001517,2]
[423015389,1779750632000,-321.71530025,0.00015562,2]
[423015393,1779750632000,-2000.0,0.0001602,2]
[423015381,1779750632000,-998.5822,0.00015354,2]
[423015424,1779750632000,-151.0,0.00017791,2]
[423015438,1779750632000,-1355.4,0.0001841,2]
[423015427,1779750632000,-500.0,0.00017917,2]
[423015462,1779750632000,-260.0,0.0002,2]
[423015461,1779750632000,-2000.0,0.0002,2]
[423015455,1779750632000,-1047.97,0.00019374,2]
[423015463,1779750632000,-858.0,0.0002,2]
[423015465,1779750632000,-198.0,0.0002,2]
[423015464,1779750632000,-157.0,0.0002,2]
[423015467,1779750632000,-959.0,0.0002,2]
[423015469,1779750632000,-2193.0,0.0002,2]
[423015468,1779750632000,-159.36241002,0.0002,2]
[423015470,1779750632000,-303.0,0.0002,2]
[423015466,1779750632000,-400.0,0.0002,2]
[423015471,1779750632000,-853.0,0.0002,2]
[423015458,1779750632000,-2316.0,0.00019934,2]
[423015472,1779750632000,-500.0,0.0002,10]
[423015473,1779750632000,-500.0,0.0002,10]
[423015475,1779750632000,-500.0,0.0002,10]
[423015482,1779750632000,-150.99,0.00020145,2]
[423015479,1779750632000,-2000.0,0.0002002,2]
[423015478,1779750632000,-2000.0,0.0002001,2]
[423015477,1779750632000,-500.0,0.0002,10]
[423015476,1779750632000,-500.0,0.0002,10]
[423015484,1779750632000,-166.66,0.00020314,2]
[423015481,1779750632000,-4883.8,0.00020145,2]
[423015480,1779750632000,-2875.995464,0.0002003,2]
[423015483,1779750632000,-200.0,0.000203,2]
[423015485,1779750632000,-483.81,0.00020323,2]
[423015474,1779750632000,-500.0,0.0002,10]
[423015457,1779750632000,-166.66,0.00019927,2]
[423015428,1779750632000,-350.0,0.00018,2]
[423015459,1779750632000,-549.16,0.00019968,2]
[423015426,1779750632000,-245.78396243,0.00017791,2]
[423015430,1779750632000,-150.0,0.00018063,2]
[423015433,1779750632000,-2000.0,0.00018198,2]
[423015432,1779750632000,-150.0,0.00018063,2]
[423015431,1779750632000,-150.0,0.00018063,2]
[423015434,1779750632000,-500.0,0.00018304,2]
[423015436,1779750632000,-207.0,0.00018354,2]
[423015460,1779750632000,-646.19,0.00019968,2]
[423015439,1779750632000,-1047.97,0.00018493,2]
[423015437,1779750632000,-166.66,0.00018379,2]
[423015440,1779750632000,-166.49,0.00018635,2]
[423015442,1779750632000,-169.37,0.00018651,2]
[423015441,1779750632000,-169.37,0.00018651,2]
[423015435,1779750632000,-219.0,0.00018354,2]
[423015452,1779750632000,-20419.01,0.00019178,2]
[423015453,1779750632000,-500.0,0.00019233,2]
[423015454,1779750632000,-200.0,0.00019346,2]
[423015456,1779750632000,-166.66,0.0001954,2]
[423015447,1779750632000,-483.81,0.00018953,2]
[423015448,1779750632000,-1449.53,0.00018969,2]
[423015451,1779750632000,-166.66,0.00019153,2]
[423015449,1779750632000,-207.99,0.00018978,2]
[423015444,1779750632000,-166.66,0.00018766,2]
[423015446,1779750632000,-1047.97,0.00018934,2]
[423015445,1779750632000,-6501.07,0.0001885,2]
[423015443,1779750632000,-169.37,0.00018651,2]
[423015450,1779750632000,-764.83489162,0.00019133,2]
[423015517,1779750633000,-500.0,0.00021499,2]
[423015525,1779750633000,-500.0,0.000215,2]
[423015526,1779750633000,-174.61919141,0.000215,2]
[423015519,1779750633000,-3469.25545848,0.000215,2]
[423015518,1779750633000,-578.20924308,0.000215,2]
[423015522,1779750633000,-157.18421635,0.000215,2]
[423015516,1779750633000,-508.63873881,0.00021438,2]
[423015524,1779750633000,-200.0,0.000215,2]
[423015513,1779750633000,-234.12,0.00021064,2]
[423015523,1779750633000,-151.0,0.000215,2]